fUST/lending_fUST_20251021
["ID","MTS","AMOUNT","RATE_DAILY","PERIOD"]
[391982625,1761054642400,-165.319059,0.00041852,10]
[391982628,1761054642411,-168.63598432,0.00041894,30]
[391982630,1761054642421,-12733.37196946,0.000419,7]
[391982634,1761054642431,-689.45,0.00041999,2]
[391982636,1761054642441,-155.23324946,0.00042,120]
[391982638,1761054642453,-1111.0,0.00042,30]
[391982640,1761054642463,-3705.34613171,0.0004204,83]
[391982642,1761054642474,-1528.38,0.000421,14]
[391982644,1761054642484,-459.760983,0.00042187,2]
[391982645,1761054642495,-1814.05326908,0.000423,120]
[391982646,1761054642504,-2319.7201112,0.00042373,2]
[391982647,1761054642514,-75533.45803325,0.000424,2]
[391982648,1761054642534,-11745.93290281,0.000424,2]
[391982649,1761054642545,-341.22010289,0.000424,2]
[391982660,1761054655167,-213.949,0.00035291,2]
[391982661,1761054655177,-257.596,0.00035291,2]
[391982662,1761054655186,-589.8769586,0.00038177,30]
[391982663,1761054655195,-150.0,0.00038291,2]
[391982664,1761054655205,-150.0,0.00038291,2]
[391982665,1761054655214,-150.0,0.00041291,2]
[391982666,1761054655224,-527.45,0.0004239,10]
[391982667,1761054655233,-162379.38896105,0.000424,2]
[391982668,1761054655243,-287.27819,0.000424,120]
[391982669,1761054655252,-1788.04060637,0.000424,120]
[391982670,1761054655261,-1000.0,0.000425,2]
[391982671,1761054655271,-215.135526,0.00042556,60]
[391982672,1761054655280,-165.319059,0.00042556,60]
[391982673,1761054655289,-1675.3876474,0.000427,120]
[391982674,1761054655299,-1284.85,0.000427,14]
[391982675,1761054655307,-150.0,0.00042839,2]
[391982676,1761054655316,-600.29198517,0.0004288,120]
[391982677,1761054655325,-1000.0,0.00042916,8]
[391982678,1761054655334,-539.12906469,0.00042995,28]
[391982679,1761054655344,-1321.23401656,0.00043,120]
[391982680,1761054655353,-285.62861789,0.00043,120]
[391982681,1761054655362,-1111.0,0.00043,30]
[391982682,1761054655372,-1862.422918,0.0004318,16]
[391982683,1761054655381,-1000.0,0.000432,16]
[391982684,1761054655390,-1000.0,0.0004322,16]
[391982685,1761054655400,-1000.0,0.0004324,16]
[391982686,1761054655409,-1000.0,0.0004326,16]
[391982687,1761054655418,-1000.0,0.0004328,16]
[391982688,1761054655427,-1000.0,0.000433,16]
[391982689,1761054655436,-1000.0,0.0004332,16]
[391982690,1761054655448,-1000.0,0.0004334,16]
[391982691,1761054655457,-1000.0,0.0004336,16]
[391982692,1761054655466,-200.0,0.00043366,120]
[391982693,1761054655475,-1000.0,0.0004338,16]
[391982694,1761054655485,-1168.737153,0.0004338,16]
[391982695,1761054655494,-500.0,0.00043383,30]
[391982696,1761054655503,-200.0,0.00043394,120]
[391982697,1761054655513,-250000.0,0.000434,2]
[391982698,1761054655522,-1000.0,0.000434,16]
[391982699,1761054655531,-1000.0,0.000434,16]
[391982700,1761054655540,-150.0,0.000434,2]
[391982701,1761054655549,-1814.05326908,0.000435,120]
[391982702,1761054655604,-787.94,0.00043554,2]
[391982703,1761054655614,-1528.38,0.000437,14]
[391982704,1761054655623,-517.5995199,0.00043739,2]
[391982705,1761054655632,-1000.0,0.000438,90]
[391982706,1761054655641,-2151.0,0.0004393,5]
[391982707,1761054655651,-4205.0,0.00044113,120]
[391982708,1761054655660,-983.0,0.00044291,2]
[391982709,1761054655669,-632.0,0.00044291,2]
[391982710,1761054655680,-2164.0,0.00044291,2]
[391982711,1761054655689,-287.27819,0.000443,120]
[391982712,1761054655699,-1663.7251937,0.00044351,2]
[391982713,1761054655712,-199.0,0.0004436,65]
[391982714,1761054655721,-1897.49208544,0.0004437,120]
[391982715,1761054655731,-528514.64431955,0.000444,2]
[391982716,1761054655740,-1284.85,0.000444,14]
[391982717,1761054655750,-455.590158,0.000445,120]
[391982718,1761054655760,-454.0592688,0.00044541,2]
[391982719,1761054655769,-153.0,0.00044587,30]
[391982720,1761054655780,-153.0,0.00044587,30]
[391982721,1761054655790,-153.0,0.00044587,30]
[391982722,1761054655800,-153.0,0.00044587,30]
[391982723,1761054655810,-200.0,0.00044642,120]
[391982724,1761054655820,-160.0,0.000447,5]
[391982725,1761054655831,-165.6173122,0.000447,5]
[391982726,1761054655841,-1114.58353831,0.000449,120]
[391982727,1761054655851,-1000.09241078,0.00045,2]
[391982728,1761054655861,-871.00023781,0.00045,20]
[391982729,1761054655871,-579.49944725,0.00045,120]
[391982730,1761054655881,-159.29,0.00045,30]
[391982731,1761054655891,-886.44,0.0004511,2]
[391982732,1761054655900,-794.14315737,0.000454,120]
[391982733,1761054655909,-500.0,0.00045667,30]
[391982734,1761054655919,-1528.38,0.000457,14]
[391982735,1761054655928,-215.135526,0.00045926,10]
[391982736,1761054655941,-165.319059,0.00045926,10]
[391982737,1761054655950,-762.555276,0.00046143,2]
[391982738,1761054655959,-215.135526,0.00046151,60]
[391982739,1761054655968,-165.319059,0.00046151,60]
[391982740,1761054655977,-287.27819,0.000462,120]
[391982741,1761054655986,-984.93,0.00046665,2]
[391982742,1761054655995,-200.0,0.00046898,120]
[391982743,1761054656005,-200.0,0.00046898,120]
[391982744,1761054656014,-200.0,0.00046898,120]
[391982745,1761054656023,-150.27411997,0.00047,90]
[391982746,1761054656033,-1284.85,0.00047,14]
[391982747,1761054656043,-1139.66,0.00047,14]
[391982748,1761054656052,-199.0,0.0004701,72]
[391982749,1761054656061,-1897.49208544,0.00047032,120]
[391982750,1761054656070,-539.12906469,0.00047265,28]
[391982751,1761054656079,-983.0,0.00047291,2]
[391982752,1761054656088,-632.0,0.00047291,2]
[391982753,1761054656097,-2164.0,0.00047291,2]
[391982754,1761054656106,-3011.0,0.00047334,5]
[391982755,1761054656115,-874.44170948,0.000478,120]
[391982756,1761054656125,-2100.0,0.00047808,60]
[391982757,1761054656135,-1016.0,0.00048,120]
[391982758,1761054656144,-1528.38,0.00048,14]
[391982759,1761054656153,-600.0,0.00048,2]
[391982760,1761054656162,-500.0,0.0004807,30]
[391982761,1761054656171,-500.0,0.0004807,30]
[391982762,1761054656180,-287.27821,0.000481,120]
[391982763,1761054656190,-265.0698355,0.000482,120]
[391982764,1761054656198,-49172.20753628,0.000483,7]
[391982765,1761054656763,-3860.0,0.000483,7]
[391982766,1761054656774,-1200.96,0.000483,7]
[391982767,1761054656785,-726.76212956,0.000483,7]
[391982768,1761054782244,10000.0,0.00030137,120]
[391982769,1761054802292,7048.89,0.00030137,120]
[391982770,1761055141157,150.0,0.00022494,30]
[391982771,1761055142114,171.28,0.00023565,30]
[391982772,1761055247004,322.52866099,0.00024072,2]
[391982773,1761055264709,500.0,0.00030099,120]
[391982775,1761055456360,9677.48133901,0.00022,10]
[391982776,1761055456385,322.51866099,0.00022,10]
[391982777,1761055476901,10000.0,0.00024072,2]
[391982778,1761055505981,0.01,0.00024072,2]
[391982779,1761055506003,9999.99,0.00024072,2]
[391982780,1761055532737,0.02,0.00016,2]
[391982781,1761055532760,195.98,0.00016,2]
[391982782,1761055532951,349.50995603,0.000181,2]
[391982783,1761055572078,9454.52004397,0.00024072,2]
[391982784,1761055572103,545.47995603,0.00024072,2]
[391982785,1761055577174,6500.0,0.00022,10]
[391982786,1761055600988,483.04,0.00021972,2]
[391982787,1761055680522,476.89,0.00021935,2]
[391982788,1761055690863,417.15472785,0.00024072,2]
[391982789,1761055768753,2000.0,0.00034739,35]
[391982790,1761055768907,470.83,0.00021877,2]
[391982803,1761055832096,-5000.0,0.00024703,2]
[391982804,1761055832106,-600.0,0.00024953,2]
[391982805,1761055832118,-941.65,0.00025524,2]
[391982806,1761055832128,-848.2569905,0.00026431,2]
[391982807,1761055832137,-160.0,0.00026512,2]
[391982808,1761055832147,-300.0,0.00026848,2]
[391982809,1761055832158,-412.0002776,0.00027136,2]
[391982811,1761055832167,-180.45245279,0.000279,2]
[391982812,1761055832177,-3202.0,0.00028,30]
[391982814,1761055832186,-30818.6834837,0.00028966,30]
[391982815,1761055832196,-420.0,0.0002903,2]
[391982816,1761055832205,-269.56453238,0.0002907,2]
[391982817,1761055832215,-1412.48,0.0002917,2]
[391982818,1761055832224,-20781.75102875,0.00029332,2]
[391982819,1761055832233,-160.0,0.00029579,2]
[391982820,1761055832242,-300.0,0.000301,2]
[391982821,1761055832252,-300.0,0.000301,2]
[391982822,1761055832261,-300.0,0.000301,2]
[391982823,1761055832271,-300.0,0.000301,2]
[391982824,1761055832280,-300.0,0.000301,2]
[391982825,1761055832289,-300.0,0.000301,2]
[391982826,1761055832299,-300.0,0.000301,2]
[391982827,1761055832308,-300.0,0.000301,2]
[391982828,1761055832320,-300.0,0.000301,2]
[391982830,1761055832330,-300.0,0.000301,2]
[391982832,1761055832339,-300.0,0.000301,2]
[391982834,1761055832349,-300.0,0.000301,2]
[391982836,1761055832358,-300.0,0.000301,2]
[391982838,1761055832367,-260.0,0.00030127,2]
[391982840,1761055832377,-587.0,0.0003139,2]
[391982842,1761055832386,-515.465322,0.00031407,2]
[391982844,1761055832394,-172.287,0.00031407,29]
[391982846,1761055832403,-1782.5,0.000319,9]
[391982848,1761055832413,-165.02,0.00031952,15]
[391982850,1761055832422,-153.76,0.0003203,15]
[391982852,1761055832431,-151.34,0.0003203,15]
[391982854,1761055832440,-165.02,0.00032052,15]
[391982856,1761055832449,-379.02,0.0003213,15]
[391982858,1761055832458,-153.76,0.0003213,15]
[391982860,1761055832467,-151.34,0.0003213,15]
[391982862,1761055832476,-165.02,0.00032152,15]
[391982864,1761055832485,-153.76,0.0003223,15]
[391982866,1761055832495,-151.34,0.0003223,15]
[391982868,1761055832504,-165.02,0.00032252,15]
[391982870,1761055832513,-153.76,0.0003233,15]
[391982872,1761055832522,-151.34,0.0003233,15]
[391982874,1761055832531,-165.05,0.00032352,15]
[391982876,1761055832539,-300.0,0.000324,2]
[391982877,1761055832548,-300.0,0.000324,2]
[391982880,1761055832557,-153.76,0.0003243,15]
[391982882,1761055832567,-151.34,0.0003243,15]
[391982884,1761055832577,-153.76,0.0003253,15]
[391982885,1761055832586,-151.34,0.0003253,15]
[391982887,1761055832595,-153.76,0.0003263,15]
[391982889,1761055832605,-151.34,0.0003263,15]
[391982892,1761055832615,-153.76,0.0003273,15]
[391982893,1761055832623,-151.34,0.0003273,15]
[391982896,1761055832633,-1883.3,0.00032816,2]
[391982897,1761055832642,-153.76,0.0003283,15]
[391982899,1761055832650,-151.34,0.0003283,15]
[391982901,1761055832659,-206.3257454,0.00032877,2]
[391982903,1761055832668,-287.27819,0.000329,120]
[391982905,1761055832677,-153.76,0.0003293,60]
[391982907,1761055832686,-151.34,0.0003293,60]
[391982909,1761055832694,-250.0,0.00032971,2]
[391982911,1761055832704,-153.76,0.0003303,60]
[391982913,1761055832713,-151.34,0.0003303,60]
[391982915,1761055832721,-500.0,0.00033129,120]
[391982917,1761055832731,-153.76,0.0003313,60]
[391982919,1761055832742,-151.34,0.0003313,60]
[391982921,1761055832754,-153.76,0.0003323,60]
[391982923,1761055832765,-151.34,0.0003323,60]
[391982925,1761055832774,-254.14068666,0.00033319,2]
[391982926,1761055832783,-153.76,0.0003333,60]
[391982928,1761055832792,-151.34,0.0003333,60]
[391982930,1761055832801,-153.76,0.0003343,60]
[391982932,1761055832811,-151.34,0.0003343,60]
[391982934,1761055832823,-153.76,0.0003353,60]
[391982936,1761055832832,-151.34,0.0003353,60]
[391982938,1761055832841,-153.76,0.0003363,60]
[391982940,1761055832850,-151.34,0.0003363,60]
[391982942,1761055832859,-153.76,0.0003373,60]
[391982944,1761055832868,-151.34,0.0003373,60]
[391982946,1761055832877,-153.76,0.0003383,60]
[391982948,1761055832886,-151.34,0.0003383,60]
[391982950,1761055832896,-153.76,0.0003393,60]
[391982952,1761055832906,-151.34,0.0003393,60]
[391982954,1761055832915,-823.0,0.00033941,2]
[391982956,1761055832926,-153.76,0.0003403,60]
[391982958,1761055832936,-151.34,0.0003403,60]
[391982960,1761055832944,-153.76,0.0003413,60]
[391982962,1761055832954,-151.34,0.0003413,60]
[391982964,1761055832963,-153.76,0.0003423,60]
[391982966,1761055832974,-151.34,0.0003423,60]
[391982968,1761055832983,-153.76,0.0003433,60]
[391982970,1761055832992,-151.34,0.0003433,60]
[391982972,1761055833001,-153.76,0.0003443,60]
[391982974,1761055833010,-151.34,0.0003443,60]
[391982976,1761055833019,-153.76,0.0003453,60]
[391982978,1761055833029,-151.34,0.0003453,60]
[391982980,1761055833038,-153.76,0.0003463,60]
[391982982,1761055833047,-151.34,0.0003463,60]
[391982984,1761055833056,-160.93696,0.00034634,60]
[391982986,1761055833066,-163.252403,0.00034634,60]
[391982988,1761055833081,-160.93696,0.00034678,60]
[391982990,1761055833093,-163.252403,0.00034678,60]
[391982993,1761055833105,-154.01546966,0.0003473,60]
[391982994,1761055833119,-151.34,0.0003473,60]
[391982996,1761055833131,-250.0,0.00034739,10]
[391982997,1761055833142,-250.0,0.00034739,10]
[391982999,1761055833154,-250.0,0.00034739,10]
[391983000,1761055833165,-250.0,0.00034739,10]
[391983002,1761055833177,-250.501735,0.00034739,10]
[391983003,1761055833188,-151.34,0.0003483,60]
[391983004,1761055833199,-1280.43875204,0.00034849,120]
[391983005,1761055833210,-151.34,0.0003493,60]
[391983006,1761055833220,-151.34,0.0003503,60]
[391983007,1761055833230,-151.63,0.0003513,60]
[391983008,1761055833240,-983.0,0.00035263,2]
[391983009,1761055833249,-632.0,0.00035263,2]
[391983010,1761055833260,-2164.0,0.00035263,2]
[391983011,1761055833272,-411.0,0.00035263,2]
[391983012,1761055833283,-428.678,0.00035263,2]
[391983013,1761055833294,-269.56453234,0.00035538,2]
[391983014,1761055833304,-150.0,0.00035651,2]
[391983015,1761055833314,-150.0,0.00035651,2]
[391983016,1761055833329,-2252.22977772,0.000358,2]
[391983017,1761055833340,-2142.0,0.00035814,120]
[391983018,1761055833351,-2142.0,0.00035824,120]
[391983019,1761055833362,-2999.0,0.00035832,120]
[391983020,1761055833373,-2142.0,0.00035834,120]
[391983021,1761055833385,-500.0,0.00035843,120]
[391983022,1761055833395,-500.0,0.00035843,120]
[391983023,1761055833406,-491.90045408,0.00035843,120]
[391983024,1761055833418,-370000.0,0.00035844,2]
[391983025,1761055833429,-1804.32,0.000359,14]
[391983026,1761055833441,-911.72,0.000359,7]
[391983027,1761055833452,-2354.13,0.00036462,2]
[391983028,1761055833462,-1060.0,0.000365,14]
[391983029,1761055833473,-5626.0,0.00036507,2]
[391983030,1761055833484,-5000.0,0.00036692,4]
[391983031,1761055833495,-1152.0,0.000367,2]
[391983032,1761055833507,-150.0,0.0003678,60]
[391983033,1761055833518,-233.81330616,0.00036822,2]
[391983034,1761055833530,-250.0,0.000374,10]
[391983035,1761055833541,-501.53946441,0.00037444,14]
[391983036,1761055833552,-500.0,0.00037444,14]
[391983037,1761055833563,-250.0,0.000375,10]
[391983038,1761055833577,-329.0,0.00037596,2]
[391983039,1761055833588,-250.0,0.000376,10]
[391983040,1761055833599,-330.0,0.0003769,2]
[391983041,1761055833609,-250.0,0.000377,10]
[391983042,1761055833619,-201.78,0.00037721,30]
[391983043,1761055833630,-250.0,0.000378,10]
[391983044,1761055833641,-329.0,0.00037858,2]
[391983045,1761055833652,-250.0,0.000379,10]
[391983046,1761055833662,-250.0,0.00038,10]
[391983047,1761055833674,-330.0,0.00038059,2]
[391983048,1761055833684,-250.0,0.000381,10]
[391983049,1761055833694,-250.0,0.000382,10]
[391983050,1761055833704,-983.0,0.00038263,2]
[391983051,1761055833715,-632.0,0.00038263,2]
[391983052,1761055833726,-2164.0,0.00038263,2]
[391983053,1761055833737,-411.0,0.00038263,2]
[391983054,1761055833747,-411.0,0.00038263,2]
[391983055,1761055833758,-250.0,0.000383,10]
[391983056,1761055833769,-330.0,0.00038387,7]
[391983057,1761055833780,-1060.0,0.000384,14]
[391983058,1761055833790,-250.0,0.000384,10]
[391983059,1761055833801,-329.0,0.00038479,120]
[391983060,1761055833812,-329.0,0.00038487,7]
[391983061,1761055833825,-250.0,0.000385,10]
[391983062,1761055833835,-329.0,0.00038604,2]
[391983063,1761055833845,-330.0,0.00038648,120]
[391983064,1761055833857,-150.0,0.00038651,2]
[391983065,1761055833867,-150.0,0.00038651,2]
[391983066,1761055833877,-151.0,0.000387,19]
[391983067,1761055833888,-518.0,0.00038795,90]
[391983068,1761055833899,-329.0,0.00039195,2]
[391983069,1761055833909,-329.0,0.0003923,2]
[391983070,1761055833919,-329.0,0.00039511,2]
[391983071,1761055833929,-329.0,0.00039584,2]
[391983072,1761055833939,-151.0,0.000396,17]
[391983073,1761055833950,-1613.0,0.00039683,5]
[391983074,1761055833961,-330.0,0.00039763,120]
[391983075,1761055833971,-329.0,0.00039849,2]
[391983076,1761055833981,-504.0837952,0.0004,10]
[391983077,1761055833991,-1000.0,0.0004,30]
[391983078,1761055834001,-256.26,0.0004,3]
[391983079,1761055834011,-1111.0,0.0004,30]
[391983080,1761055834021,-600.0,0.0004,120]
[391983081,1761055834031,-2824.95,0.00040109,2]
[391983082,1761055834042,-329.0,0.00040358,7]
[391983083,1761055834053,-330.0,0.00040452,7]
[391983084,1761055834063,-151.0,0.000405,11]
[391983085,1761055834076,-329.0,0.00040529,2]
[391983086,1761055834087,-330.0,0.00040574,2]
[391983087,1761055834097,-329.0,0.00040585,2]
[391983088,1761055834107,-911.72,0.000406,7]
[391983089,1761055834121,-1060.0,0.000406,14]
[391983090,1761055834131,-330.0,0.00040731,2]
[391983091,1761055834142,-329.0,0.00040735,7]
[391983092,1761055834153,-791.1772209,0.00040765,30]
[391983093,1761055834168,-329.0,0.00040826,2]
[391983094,1761055834183,-500.0,0.00040843,2]
[391983095,1761055834196,-503.36300446,0.00040843,5]
[391983096,1761055834207,-597.2482508,0.00040902,30]
[391983097,1761055834219,-382.802855,0.00040902,30]
[391983098,1761055834230,-308.1954585,0.00040902,30]
[391983099,1761055834241,-589.8769586,0.00040902,30]
[391983100,1761055834252,-589.8769586,0.00040902,30]
[391983101,1761055834263,-589.8769586,0.00040902,30]
[391983102,1761055834274,-1111.0,0.00041,30]
[391983103,1761055834290,-330.0,0.00041157,2]
[391983104,1761055834300,-155.3766081,0.00041176,30]
[391983105,1761055834310,-983.0,0.00041263,2]
[391983106,1761055834320,-632.0,0.00041263,2]
[391983107,1761055834332,-2164.0,0.00041263,2]
[391983108,1761055834342,-411.0,0.00041263,2]
[391983109,1761055834351,-411.0,0.00041263,2]
[391983110,1761055834362,-611.41961782,0.00041391,2]
[391983111,1761055834372,-151.0,0.000414,10]
[391983112,1761055834382,-329.0,0.00041502,7]
[391983113,1761055834392,-188.94,0.0004151,120]
[391983114,1761055834403,-100000.0,0.0004161,2]
[391983115,1761055834413,-400000.0,0.0004161,5]
[391983116,1761055834424,-1563.37797228,0.0004161,15]
[391983117,1761055834435,-785.65591985,0.00041674,120]
[391983118,1761055834445,-589.8769586,0.00041724,30]
[391983119,1761055834456,-589.8769586,0.00041724,30]
[391983120,1761055834473,-589.8769586,0.00041724,30]
[391983121,1761055834485,-589.8769586,0.00041724,30]
[391983122,1761055834496,-168.63598432,0.00041947,30]
[391983123,1761055834507,-1111.0,0.00042,30]
[391983124,1761055834518,-269.56453234,0.00042005,28]
[391983125,1761055834528,-1804.32,0.000421,14]
[391983126,1761055834538,-158.46756255,0.0004211,30]
[391983127,1761055834550,-151.0,0.000423,13]
[391983128,1761055834560,-199.0,0.0004231,59]
[391983129,1761055834573,-158.46756255,0.00042548,30]
[391983130,1761055834583,-2252.22977771,0.00042572,2]
[391983131,1761055834593,-1060.0,0.000426,14]
[391983132,1761055834603,-2252.0,0.00042908,5]
[391983133,1761055834613,-1111.0,0.00043,30]
[391983134,1761055834622,-158.46756255,0.00043014,30]
[391983135,1761055834633,-151.0,0.000432,11]
[391983136,1761055834645,-158.46756255,0.00043452,30]
[391983137,1761055834656,-911.72,0.000436,14]
[391983138,1761055834667,-762.0,0.000436,30]
[391983139,1761055834676,-150.0,0.00043619,10]
[391983140,1761055834686,-3295.78,0.00043755,2]
[391983141,1761055834697,-500.0,0.00043835,30]
[391983142,1761055834706,-500.0,0.00043835,2]
[391983143,1761055834716,-500.0,0.00043835,7]
[391983144,1761055834726,-501.09870338,0.00043835,20]
[391983145,1761055834736,-500.0,0.00043835,20]
[391983146,1761055834746,-500.0,0.00043835,7]
[391983147,1761055834756,-3514.21,0.00043835,2]
[391983148,1761055834765,-500.0,0.00043835,7]
[391983149,1761055834777,-500.0,0.00043835,120]
[391983150,1761055834788,-500.0,0.00043835,120]
[391983151,1761055834798,-500.0,0.00043835,120]
[391983152,1761055834808,-500.0,0.00043835,7]
[391983153,1761055834820,-778.16,0.00043835,30]
[391983154,1761055834830,-500.0,0.00043835,2]
[391983155,1761055834840,-500.0,0.00043835,7]
[391983156,1761055834849,-1392.76,0.00043835,3]
[391983157,1761055834860,-500.0,0.00043835,120]
[391983158,1761055834869,-181.22010289,0.00043835,2]
[391983159,1761055834880,-158.46756255,0.00043918,120]
[391983160,1761055834894,-403.56,0.00044008,30]
[391983161,1761055834904,-151.0,0.000441,12]
[391983162,1761055834914,-500.0,0.00044109,30]
[391983163,1761055834924,-500.0,0.00044109,2]
[391983164,1761055834934,-500.0,0.00044109,7]
[391983165,1761055834944,-500.0,0.00044109,20]
[391983166,1761055834954,-500.0,0.00044109,7]
[391983167,1761055834964,-3514.21,0.00044109,2]
[391983168,1761055834974,-500.0,0.00044109,7]
[391983169,1761055834985,-500.0,0.00044109,120]
[391983170,1761055834995,-500.0,0.00044109,120]
[391983171,1761055835004,-500.0,0.00044109,120]
[391983172,1761055835014,-582.60249942,0.00044109,7]
[391983173,1761055835024,-778.16,0.00044109,30]
[391983174,1761055835034,-500.0,0.00044109,2]
[391983175,1761055835044,-500.0,0.00044109,7]
[391983176,1761055835054,-1392.76,0.00044109,3]
[391983177,1761055835064,-500.0,0.00044109,120]
[391983178,1761055835076,-250.0,0.00044167,10]
[391983179,1761055835085,-983.0,0.00044263,2]
[391983180,1761055835095,-632.0,0.00044263,2]
[391983181,1761055835105,-2164.0,0.00044263,2]
[391983182,1761055835119,-411.0,0.00044263,2]
[391983183,1761055835130,-411.0,0.00044263,2]
[391983184,1761055835140,-158.46756255,0.00044356,120]
[391983185,1761055835152,-500.0,0.00044383,30]
[391983186,1761055835163,-500.0,0.00044383,2]
[391983187,1761055835333,-550.8835734,0.00044383,7]
[391983188,1761055835343,-500.0,0.00044383,20]
[391983189,1761055835353,-500.0,0.00044383,7]
[391983190,1761055835363,-3514.21,0.00044383,2]
[391983191,1761055835372,-500.0,0.00044383,7]
[391983192,1761055835382,-500.0,0.00044383,120]
[391983193,1761055835391,-500.0,0.00044383,120]
[391983194,1761055835401,-500.0,0.00044383,120]
[391983195,1761055835410,-778.16,0.00044383,30]
[391983196,1761055835419,-500.0,0.00044383,2]
[391983197,1761055835428,-500.0,0.00044383,7]
[391983198,1761055835437,-1392.76,0.00044383,3]
[391983199,1761055835446,-500.0,0.00044383,120]
[391983200,1761055835455,-153.0,0.00044523,30]
[391983201,1761055835464,-500.0,0.00044657,30]
[391983202,1761055835473,-500.0,0.00044657,2]
[391983203,1761055835483,-500.0,0.00044657,20]
[391983204,1761055835492,-500.0,0.00044657,7]
[391983205,1761055835501,-3514.21,0.00044657,2]
[391983206,1761055835511,-333.23628324,0.00044657,7]
[391983207,1761055835520,-500.0,0.00044657,120]
[391983208,1761055835529,-500.0,0.00044657,120]
[391983209,1761055835538,-500.0,0.00044657,120]
[391983210,1761055835546,-778.16,0.00044657,30]
[391983211,1761055835555,-500.0,0.00044657,2]
[391983212,1761055835564,-500.0,0.00044657,7]
[391983213,1761055835575,-1392.76,0.00044657,3]
[391983214,1761055835584,-500.0,0.00044657,120]
[391983215,1761055835594,-160.0,0.000447,5]
[391983216,1761055835603,-240.11853006,0.00044715,10]
[391983217,1761055835613,-160.93696,0.00044775,14]
[391983218,1761055835623,-500.0,0.00044931,30]
[391983219,1761055835632,-500.0,0.00044931,2]
[391983220,1761055835641,-500.0,0.00044931,20]
[391983221,1761055835651,-500.0,0.00044931,7]
[391983222,1761055835660,-3514.21,0.00044931,2]
[391983223,1761055835670,-500.0,0.00044931,120]
[391983224,1761055835679,-500.0,0.00044931,120]
[391983225,1761055835689,-500.0,0.00044931,120]
[391983226,1761055835698,-778.16,0.00044931,30]
[391983227,1761055835707,-500.0,0.00044931,2]
[391983228,1761055835716,-500.0,0.00044931,7]
[391983229,1761055835725,-1392.76,0.00044931,3]
[391983230,1761055835734,-500.0,0.00044931,120]
[391983231,1761055835743,-199.0,0.0004519,67]
[391983232,1761055835752,-500.0,0.00045205,30]
[391983233,1761055835761,-512.33199477,0.00045205,2]
[391983234,1761055835770,-500.0,0.00045205,20]
[391983235,1761055835779,-500.0,0.00045205,7]
[391983236,1761055835788,-3514.21,0.00045205,2]
[391983237,1761055835797,-500.0,0.00045205,120]
[391983238,1761055835806,-500.0,0.00045205,120]
[391983239,1761055835815,-500.0,0.00045205,120]
[391983240,1761055835827,-778.16,0.00045205,30]
[391983241,1761055835836,-509.91762368,0.00045205,2]
[391983242,1761055835845,-500.0,0.00045205,7]
[391983243,1761055835854,-1392.76,0.00045205,3]
[391983244,1761055835863,-500.0,0.00045205,120]
[391983245,1761055835872,-160.93696,0.00045272,2]